[Event "Titled Tuesday Blitz February 07 Late 2023"]
[White "Kamsky, Gata"]
[Black "Dourerassou, Jonathan"]
[WhiteFideId "2000024"]
[BlackFideId "628050"]
[WhiteElo "2665"]
[BlackElo "2414"]
[Result "0-1"]
[Round "08"]
[TimeControl "180+2"]
[Date "2023.02.07"]
[WhiteClock "0:00:01"]
[BlackClock "0:00:02"]

1. d4 {[%clk 0:03:00]}  Nf6 {[%clk 0:02:59]} 2. Bf4 {[%clk 0:02:56]}  g6 {[%clk 0:02:59]} 3. c3 {[%clk 0:02:55]}  Bg7 {[%clk 0:02:59]} 4. Nf3 {[%clk 0:02:53]}  O-O {[%clk 0:02:59]} 5. Nbd2 {[%clk 0:02:37]}  d6 {[%clk 0:03:00]} 6. h3 {[%clk 0:02:37]}  Nbd7 {[%clk 0:03:00]} 7. e4 {[%clk 0:02:36]}  c5 {[%clk 0:03:00]} 8. d5 {[%clk 0:02:35]}  a6 {[%clk 0:03:00]} 9. a4 {[%clk 0:02:34]}  b6 {[%clk 0:02:59]} 10. Bd3 {[%clk 0:02:29]}  Bb7 {[%clk 0:03:00]} 11. O-O {[%clk 0:02:28]}  Re8 {[%clk 0:03:00]} 12. Re1 {[%clk 0:02:27]}  Qc7 {[%clk 0:02:59]} 13. Qe2 {[%clk 0:02:14]}  e6 {[%clk 0:02:55]} 14. dxe6 {[%clk 0:02:12]}  Rxe6 {[%clk 0:02:56]} 15. Bc4 {[%clk 0:02:09]}  Re7 {[%clk 0:02:52]} 16. Qd3 {[%clk 0:02:08]}  Ne5 {[%clk 0:02:48]} 17. Nxe5 {[%clk 0:02:04]}  dxe5 {[%clk 0:02:49]} 18. Bg5 {[%clk 0:02:03]}  Rd7 {[%clk 0:02:48]} 19. Qf3 {[%clk 0:01:57]}  Nh5 {[%clk 0:02:41]} 20. Nf1 {[%clk 0:01:56]}  h6 {[%clk 0:02:34]} 21. Bh4 {[%clk 0:01:54]}  Nf4 {[%clk 0:02:31]} 22. Bg3 {[%clk 0:01:50]}  Kh7 {[%clk 0:02:25]} 23. Ne3 {[%clk 0:00:59]}  f5 {[%clk 0:02:17]} 24. Nd5 {[%clk 0:00:59]}  Nxd5 {[%clk 0:02:10]} 25. Bxd5 {[%clk 0:00:58]}  Bxd5 {[%clk 0:02:01]} 26. exd5 {[%clk 0:00:58]}  f4 {[%clk 0:01:31]} 27. Bh2 {[%clk 0:00:57]}  c4 {[%clk 0:01:31]} 28. g3 {[%clk 0:00:57]}  Rf8 {[%clk 0:01:27]} 29. gxf4 {[%clk 0:00:56]}  exf4 {[%clk 0:01:26]} 30. Rad1 {[%clk 0:00:49]}  Rf5 {[%clk 0:01:23]} 31. Re6 {[%clk 0:00:43]}  Qc5 {[%clk 0:01:14]} 32. d6 {[%clk 0:00:41]}  Bf8 {[%clk 0:00:34]} 33. Bxf4 {[%clk 0:00:25]}  Rdf7 {[%clk 0:00:25]} 34. d7 {[%clk 0:00:24]}  Rxf4 {[%clk 0:00:26]} 35. Qxf4 {[%clk 0:00:14]}  Rxf4 {[%clk 0:00:27]} 36. Re2 {[%clk 0:00:10]}  Qg5+ {[%clk 0:00:20]} 37. Kf1 {[%clk 0:00:10]}  Qf5 {[%clk 0:00:10]} 38. d8=Q {[%clk 0:00:09]}  Qxh3+ {[%clk 0:00:11]} 39. Ke1 {[%clk 0:00:10]}  Rf7 {[%clk 0:00:08]} 40. Qd5 {[%clk 0:00:08]}  Rg7 {[%clk 0:00:05]} 41. Qxc4 {[%clk 0:00:07]}  Bc5 {[%clk 0:00:05]} 42. Kd2 {[%clk 0:00:07]}  Rd7+ {[%clk 0:00:05]} 43. Kc1 {[%clk 0:00:07]}  Rg7 {[%clk 0:00:05]} 44. Kc2 {[%clk 0:00:06]}  Qf5+ {[%clk 0:00:05]} 45. Kb3 {[%clk 0:00:06]}  b5 {[%clk 0:00:05]} 46. axb5 {[%clk 0:00:06]}  axb5 {[%clk 0:00:06]} 47. Qd5 {[%clk 0:00:06]}  Qf8 {[%clk 0:00:05]} 48. Re6 {[%clk 0:00:05]}  b4 {[%clk 0:00:05]} 49. cxb4 {[%clk 0:00:01]}  Bxb4 {[%clk 0:00:05]} 50. Rh1 {[%clk 0:00:01]}  Bc5 {[%clk 0:00:02]} 0-1


[Site "https://www.chess.com"]

[Event "Titled Tuesday Blitz February 07 Late 2023"]
[White "Yuan, Qingyu"]
[Black "Mgeladze, Tamaz"]
[WhiteFideId "8609772"]
[BlackFideId "13601202"]
[WhiteElo "2373"]
[BlackElo "2388"]
[Result "1-0"]
[Round "08"]
[TimeControl "180+2"]
[Date "2023.02.07"]
[WhiteClock "0:00:10"]
[BlackClock "0:00:38"]

1. e4 {[%clk 0:03:00]}  c5 {[%clk 0:02:58]} 2. Nf3 {[%clk 0:02:57]}  g6 {[%clk 0:02:58]} 3. c3 {[%clk 0:02:56]}  Nf6 {[%clk 0:02:58]} 4. e5 {[%clk 0:02:55]}  Nd5 {[%clk 0:02:58]} 5. d4 {[%clk 0:02:36]}  cxd4 {[%clk 0:02:59]} 6. Qxd4 {[%clk 0:02:36]}  Nb6 {[%clk 0:02:59]} 7. Bf4 {[%clk 0:02:14]}  Nc6 {[%clk 0:02:58]} 8. Qe4 {[%clk 0:02:14]}  d5 {[%clk 0:02:57]} 9. exd6 {[%clk 0:02:12]}  Bf5 {[%clk 0:02:57]} 10. Qe2 {[%clk 0:02:00]}  Nd5 {[%clk 0:02:47]} 11. Be5 {[%clk 0:01:40]}  Nxe5 {[%clk 0:02:30]} 12. Qxe5 {[%clk 0:01:33]}  Nf6 {[%clk 0:02:30]} 13. Bb5+ {[%clk 0:01:25]}  Bd7 {[%clk 0:02:29]} 14. O-O {[%clk 0:01:19]}  Bxb5 {[%clk 0:02:20]} 15. Qxb5+ {[%clk 0:01:00]}  Qd7 {[%clk 0:02:20]} 16. Na3 {[%clk 0:00:55]}  O-O-O {[%clk 0:01:42]} 17. Ne5 {[%clk 0:00:50]}  Qe8 {[%clk 0:00:53]} 18. Qc4+ {[%clk 0:00:39]}  Kb8 {[%clk 0:00:51]} 19. Qc7+ {[%clk 0:00:24]}  Ka8 {[%clk 0:00:52]} 20. d7 {[%clk 0:00:24]}  Nxd7 {[%clk 0:00:49]} 21. Rad1 {[%clk 0:00:24]}  e6 {[%clk 0:00:45]} 22. Rxd7 {[%clk 0:00:19]}  Rxd7 {[%clk 0:00:45]} 23. Nxd7 {[%clk 0:00:19]}  Bxa3 {[%clk 0:00:41]} 24. bxa3 {[%clk 0:00:19]}  Qc8 {[%clk 0:00:40]} 25. Qxc8+ {[%clk 0:00:15]}  Rxc8 {[%clk 0:00:41]} 26. Rc1 {[%clk 0:00:15]}  Rc4 {[%clk 0:00:34]} 27. Kf1 {[%clk 0:00:13]}  Ra4 {[%clk 0:00:34]} 28. Ne5 {[%clk 0:00:12]}  f6 {[%clk 0:00:33]} 29. Nf3 {[%clk 0:00:11]}  Rxa3 {[%clk 0:00:33]} 30. Rc2 {[%clk 0:00:12]}  e5 {[%clk 0:00:32]} 31. h4 {[%clk 0:00:12]}  a5 {[%clk 0:00:32]} 32. Ke2 {[%clk 0:00:11]}  Ka7 {[%clk 0:00:32]} 33. Nd2 {[%clk 0:00:12]}  Ra4 {[%clk 0:00:31]} 34. c4 {[%clk 0:00:11]}  Rb4 {[%clk 0:00:30]} 35. Ne4 {[%clk 0:00:08]}  f5 {[%clk 0:00:29]} 36. Nc5 {[%clk 0:00:08]}  Rb6 {[%clk 0:00:28]} 37. f3 {[%clk 0:00:07]}  Rc6 {[%clk 0:00:25]} 38. Nd3 {[%clk 0:00:08]}  e4 {[%clk 0:00:25]} 39. fxe4 {[%clk 0:00:08]}  fxe4 {[%clk 0:00:26]} 40. Nf4 {[%clk 0:00:08]}  h6 {[%clk 0:00:22]} 41. Ke3 {[%clk 0:00:07]}  g5 {[%clk 0:00:23]} 42. hxg5 {[%clk 0:00:08]}  hxg5 {[%clk 0:00:24]} 43. Nh3 {[%clk 0:00:07]}  g4 {[%clk 0:00:24]} 44. Nf2 {[%clk 0:00:08]}  g3 {[%clk 0:00:24]} 45. Nxe4 {[%clk 0:00:08]}  Re6 {[%clk 0:00:25]} 46. Kf3 {[%clk 0:00:08]}  a4 {[%clk 0:00:23]} 47. Nxg3 {[%clk 0:00:07]}  Ka6 {[%clk 0:00:24]} 48. Ne4 {[%clk 0:00:07]}  Ka5 {[%clk 0:00:25]} 49. Rb2 {[%clk 0:00:07]}  b6 {[%clk 0:00:24]} 50. Rb5+ {[%clk 0:00:07]}  Ka6 {[%clk 0:00:24]} 51. g4 {[%clk 0:00:07]}  Re8 {[%clk 0:00:24]} 52. g5 {[%clk 0:00:05]}  Rf8+ {[%clk 0:00:24]} 53. Ke3 {[%clk 0:00:04]}  Rc8 {[%clk 0:00:25]} 54. Rb4 {[%clk 0:00:03]}  Rg8 {[%clk 0:00:25]} 55. Rxa4+ {[%clk 0:00:03]}  Kb7 {[%clk 0:00:26]} 56. Rb4 {[%clk 0:00:03]}  Rh8 {[%clk 0:00:26]} 57. Rb5 {[%clk 0:00:04]}  Rh3+ {[%clk 0:00:27]} 58. Kf4 {[%clk 0:00:04]}  Rh1 {[%clk 0:00:28]} 59. Kf5 {[%clk 0:00:05]}  Rf1+ {[%clk 0:00:28]} 60. Ke6 {[%clk 0:00:05]}  Rg1 {[%clk 0:00:29]} 61. Re5 {[%clk 0:00:05]}  Re1 {[%clk 0:00:30]} 62. Nd6+ {[%clk 0:00:06]}  Kc6 {[%clk 0:00:30]} 63. Rxe1 {[%clk 0:00:07]}  b5 {[%clk 0:00:31]} 64. g6 {[%clk 0:00:07]}  b4 {[%clk 0:00:32]} 65. g7 {[%clk 0:00:08]}  b3 {[%clk 0:00:33]} 66. axb3 {[%clk 0:00:08]}  Kc5 {[%clk 0:00:33]} 67. g8=Q {[%clk 0:00:09]}  Kb4 {[%clk 0:00:34]} 68. Qg7 {[%clk 0:00:09]}  Ka3 {[%clk 0:00:34]} 69. c5 {[%clk 0:00:08]}  Kb4 {[%clk 0:00:35]} 70. c6 {[%clk 0:00:09]}  Ka3 {[%clk 0:00:35]} 71. c7 {[%clk 0:00:09]}  Kb4 {[%clk 0:00:36]} 72. c8=Q {[%clk 0:00:10]}  Ka3 {[%clk 0:00:37]} 73. Qgc3 {[%clk 0:00:09]}  Ka2 {[%clk 0:00:38]} 74. Qa6# {[%clk 0:00:10]} 1-0


[Site "https://www.chess.com"]

[Event "Titled Tuesday Blitz February 07 Late 2023"]
[White "Gutenev, Alexander"]
[Black "Rustemov, Alexander"]
[WhiteFideId "4195540"]
[BlackFideId "4119002"]
[WhiteElo "2455"]
[BlackElo "2525"]
[Result "1-0"]
[Round "08"]
[TimeControl "180+2"]
[Date "2023.02.07"]
[WhiteClock "0:00:16"]
[BlackClock "0:00:03"]

1. e4 {[%clk 0:03:00]}  e6 {[%clk 0:02:59]} 2. d4 {[%clk 0:03:00]}  d5 {[%clk 0:03:00]} 3. Nc3 {[%clk 0:03:01]}  dxe4 {[%clk 0:03:00]} 4. Nxe4 {[%clk 0:03:01]}  Bd7 {[%clk 0:03:01]} 5. Nf3 {[%clk 0:02:59]}  Bc6 {[%clk 0:03:01]} 6. Bd3 {[%clk 0:03:00]}  Nd7 {[%clk 0:03:02]} 7. Qe2 {[%clk 0:03:00]}  Ngf6 {[%clk 0:03:02]} 8. Ng3 {[%clk 0:03:00]}  Bxf3 {[%clk 0:02:58]} 9. Qxf3 {[%clk 0:03:00]}  c6 {[%clk 0:02:58]} 10. O-O {[%clk 0:03:00]}  Be7 {[%clk 0:02:58]} 11. b3 {[%clk 0:02:55]}  O-O {[%clk 0:02:56]} 12. Bb2 {[%clk 0:02:56]}  Qa5 {[%clk 0:02:53]} 13. a3 {[%clk 0:02:52]}  Qg5 {[%clk 0:02:52]} 14. h3 {[%clk 0:02:51]}  Bd6 {[%clk 0:02:46]} 15. Rfe1 {[%clk 0:02:45]}  Qf4 {[%clk 0:02:45]} 16. Qe2 {[%clk 0:02:41]}  Rfe8 {[%clk 0:02:41]} 17. Rad1 {[%clk 0:02:37]}  Rad8 {[%clk 0:02:34]} 18. c4 {[%clk 0:02:33]}  Qh4 {[%clk 0:02:25]} 19. Qf3 {[%clk 0:02:30]}  Qf4 {[%clk 0:02:23]} 20. Qe2 {[%clk 0:02:30]}  Qh4 {[%clk 0:02:22]} 21. Qf3 {[%clk 0:02:27]}  g6 {[%clk 0:02:20]} 22. Ne4 {[%clk 0:02:15]}  Nxe4 {[%clk 0:02:15]} 23. Rxe4 {[%clk 0:02:15]}  Qe7 {[%clk 0:02:12]} 24. b4 {[%clk 0:02:07]}  Qf6 {[%clk 0:01:56]} 25. Qe2 {[%clk 0:02:04]}  Qg5 {[%clk 0:01:47]} 26. Rg4 {[%clk 0:02:03]}  Qh5 {[%clk 0:01:45]} 27. Qd2 {[%clk 0:01:43]}  Nf6 {[%clk 0:01:33]} 28. Rg5 {[%clk 0:01:34]}  Qh4 {[%clk 0:01:32]} 29. Ra5 {[%clk 0:01:17]}  a6 {[%clk 0:01:31]} 30. Qe2 {[%clk 0:01:15]}  Nd7 {[%clk 0:01:16]} 31. b5 {[%clk 0:00:57]}  Bc7 {[%clk 0:01:12]} 32. Ra4 {[%clk 0:00:52]}  cxb5 {[%clk 0:01:05]} 33. cxb5 {[%clk 0:00:52]}  a5 {[%clk 0:01:06]} 34. Rc4 {[%clk 0:00:50]}  Bd6 {[%clk 0:01:05]} 35. d5 {[%clk 0:00:48]}  Qe7 {[%clk 0:01:00]} 36. dxe6 {[%clk 0:00:44]}  fxe6 {[%clk 0:00:52]} 37. Rg4 {[%clk 0:00:44]}  Nf6 {[%clk 0:00:48]} 38. Rg5 {[%clk 0:00:44]}  Bf4 {[%clk 0:00:47]} 39. h4 {[%clk 0:00:28]}  Bxg5 {[%clk 0:00:45]} 40. hxg5 {[%clk 0:00:28]}  Nh5 {[%clk 0:00:42]} 41. Qe5 {[%clk 0:00:24]}  Ng7 {[%clk 0:00:42]} 42. Bc2 {[%clk 0:00:19]}  Rxd1+ {[%clk 0:00:37]} 43. Bxd1 {[%clk 0:00:20]}  Rd8 {[%clk 0:00:35]} 44. Bb3 {[%clk 0:00:20]}  b6 {[%clk 0:00:31]} 45. Bxe6+ {[%clk 0:00:18]}  Kh8 {[%clk 0:00:28]} 46. f4 {[%clk 0:00:16]}  Re8 {[%clk 0:00:27]} 47. g4 {[%clk 0:00:15]}  Qf8 {[%clk 0:00:19]} 48. f5 {[%clk 0:00:15]}  gxf5 {[%clk 0:00:16]} 49. gxf5 {[%clk 0:00:15]}  Qe7 {[%clk 0:00:09]} 50. Qf6 {[%clk 0:00:12]}  Qxf6 {[%clk 0:00:07]} 51. Bxf6 {[%clk 0:00:12]}  Rf8 {[%clk 0:00:06]} 52. Kg2 {[%clk 0:00:11]}  Rxf6 {[%clk 0:00:06]} 53. gxf6 {[%clk 0:00:12]}  Nh5 {[%clk 0:00:07]} 54. f7 {[%clk 0:00:11]}  Kg7 {[%clk 0:00:08]} 55. Kf3 {[%clk 0:00:12]}  Nf6 {[%clk 0:00:08]} 56. Kf4 {[%clk 0:00:13]}  h5 {[%clk 0:00:06]} 57. Kg5 {[%clk 0:00:13]}  h4 {[%clk 0:00:06]} 58. Kxh4 {[%clk 0:00:13]}  Ne4 {[%clk 0:00:06]} 59. Kg4 {[%clk 0:00:13]}  Nc3 {[%clk 0:00:06]} 60. Bc4 {[%clk 0:00:13]}  Nb1 {[%clk 0:00:03]} 61. a4 {[%clk 0:00:12]}  Nd2 {[%clk 0:00:03]} 62. Bd3 {[%clk 0:00:12]}  Nb3 {[%clk 0:00:03]} 63. Bc2 {[%clk 0:00:11]}  Nc5 {[%clk 0:00:03]} 64. Kf4 {[%clk 0:00:11]}  Kxf7 {[%clk 0:00:04]} 65. Ke5 {[%clk 0:00:11]}  Ke7 {[%clk 0:00:05]} 66. Kd5 {[%clk 0:00:11]}  Kd7 {[%clk 0:00:03]} 67. f6 {[%clk 0:00:12]}  Kc7 {[%clk 0:00:01]} 68. f7 {[%clk 0:00:12]}  Nd7 {[%clk 0:00:02]} 69. Bf5 {[%clk 0:00:12]}  Nf8 {[%clk 0:00:03]} 70. Ke5 {[%clk 0:00:13]}  Kd8 {[%clk 0:00:03]} 71. Kd6 {[%clk 0:00:13]}  Nd7 {[%clk 0:00:03]} 72. Be4 {[%clk 0:00:10]}  Nf8 {[%clk 0:00:02]} 73. Bd5 {[%clk 0:00:10]}  Nd7 {[%clk 0:00:02]} 74. Be4 {[%clk 0:00:10]}  Nf8 {[%clk 0:00:03]} 75. Kc6 {[%clk 0:00:11]}  Nd7 {[%clk 0:00:03]} 76. Bd5 {[%clk 0:00:11]}  Ke7 {[%clk 0:00:02]} 77. Kc7 {[%clk 0:00:12]}  Nc5 {[%clk 0:00:02]} 78. Kxb6 {[%clk 0:00:12]}  Nxa4+ {[%clk 0:00:03]} 79. Kxa5 {[%clk 0:00:12]}  Nc3 {[%clk 0:00:03]} 80. Bc4 {[%clk 0:00:12]}  Ne4 {[%clk 0:00:02]} 81. b6 {[%clk 0:00:12]}  Nd6 {[%clk 0:00:02]} 82. Bd5 {[%clk 0:00:13]}  Kd7 {[%clk 0:00:02]} 83. Ka6 {[%clk 0:00:13]}  Ke7 {[%clk 0:00:02]} 84. b7 {[%clk 0:00:13]}  Nxb7 {[%clk 0:00:01]} 85. Kxb7 {[%clk 0:00:14]}  Kf8 {[%clk 0:00:01]} 86. Kc6 {[%clk 0:00:15]}  Ke7 {[%clk 0:00:02]} 87. Kc5 {[%clk 0:00:15]}  Kf8 {[%clk 0:00:03]} 88. Kd6 {[%clk 0:00:16]} 1-0


[Site "https://www.chess.com"]

[Event "Titled Tuesday Blitz February 07 Late 2023"]
[White "Koellner, Ruben Gideon"]
[Black "Yanchenko, Roman"]
[WhiteFideId "12993093"]
[BlackFideId "4137329"]
[WhiteElo "2426"]
[BlackElo "2466"]
[Result "0-1"]
[Round "08"]
[TimeControl "180+2"]
[Date "2023.02.07"]
[WhiteClock "0:00:01"]
[BlackClock "0:00:10"]

1. d4 {[%clk 0:03:00]}  d5 {[%clk 0:03:00]} 2. Nf3 {[%clk 0:03:00]}  Bf5 {[%clk 0:03:00]} 3. e3 {[%clk 0:03:00]}  e6 {[%clk 0:03:00]} 4. Nbd2 {[%clk 0:02:59]}  Nf6 {[%clk 0:03:00]} 5. Ne5 {[%clk 0:02:59]}  Nbd7 {[%clk 0:02:59]} 6. g4 {[%clk 0:03:00]}  Nxe5 {[%clk 0:02:50]} 7. gxf5 {[%clk 0:03:00]}  Ned7 {[%clk 0:02:50]} 8. fxe6 {[%clk 0:03:00]}  fxe6 {[%clk 0:02:50]} 9. Bh3 {[%clk 0:03:00]}  Qe7 {[%clk 0:02:50]} 10. f4 {[%clk 0:02:57]}  Qf7 {[%clk 0:02:49]} 11. Qf3 {[%clk 0:02:54]}  Bd6 {[%clk 0:02:45]} 12. Rg1 {[%clk 0:02:53]}  c6 {[%clk 0:02:42]} 13. e4 {[%clk 0:02:36]}  Bf8 {[%clk 0:01:22]} 14. e5 {[%clk 0:02:22]}  Nh5 {[%clk 0:01:22]} 15. f5 {[%clk 0:02:14]}  exf5 {[%clk 0:01:22]} 16. Qxf5 {[%clk 0:02:04]}  Qxf5 {[%clk 0:01:21]} 17. Bxf5 {[%clk 0:02:05]}  g6 {[%clk 0:01:22]} 18. Bg4 {[%clk 0:02:03]}  Be7 {[%clk 0:01:03]} 19. Bxh5 {[%clk 0:01:59]}  gxh5 {[%clk 0:01:03]} 20. Nf3 {[%clk 0:01:59]}  Nf8 {[%clk 0:01:04]} 21. Bg5 {[%clk 0:01:53]}  Ne6 {[%clk 0:01:02]} 22. Be3 {[%clk 0:01:45]}  Kd7 {[%clk 0:00:56]} 23. Ke2 {[%clk 0:01:45]}  Raf8 {[%clk 0:00:55]} 24. c3 {[%clk 0:01:44]}  Rfg8 {[%clk 0:00:43]} 25. Rxg8 {[%clk 0:01:43]}  Rxg8 {[%clk 0:00:43]} 26. Rg1 {[%clk 0:01:44]}  Rg4 {[%clk 0:00:40]} 27. h3 {[%clk 0:01:42]}  Rg6 {[%clk 0:00:40]} 28. Kf2 {[%clk 0:01:34]}  Ng7 {[%clk 0:00:40]} 29. Bg5 {[%clk 0:01:19]}  Ne6 {[%clk 0:00:29]} 30. Bxe7 {[%clk 0:01:07]}  Kxe7 {[%clk 0:00:30]} 31. Rh1 {[%clk 0:00:53]}  Rg8 {[%clk 0:00:24]} 32. Rh2 {[%clk 0:00:50]}  a5 {[%clk 0:00:19]} 33. b3 {[%clk 0:00:42]}  b5 {[%clk 0:00:19]} 34. Rg2 {[%clk 0:00:39]}  Rg6 {[%clk 0:00:18]} 35. Nh4 {[%clk 0:00:36]}  Rxg2+ {[%clk 0:00:18]} 36. Nxg2 {[%clk 0:00:37]}  Kf7 {[%clk 0:00:18]} 37. Ke3 {[%clk 0:00:34]}  Ng5 {[%clk 0:00:12]} 38. h4 {[%clk 0:00:21]}  Ne4 {[%clk 0:00:12]} 39. c4 {[%clk 0:00:18]}  Nc3 {[%clk 0:00:12]} 40. cxd5 {[%clk 0:00:17]}  Nxd5+ {[%clk 0:00:12]} 41. Ke4 {[%clk 0:00:17]}  Nc3+ {[%clk 0:00:12]} 42. Kf5 {[%clk 0:00:17]}  Nxa2 {[%clk 0:00:12]} 43. Nf4 {[%clk 0:00:11]}  Nb4 {[%clk 0:00:11]} 44. Ne2 {[%clk 0:00:03]}  a4 {[%clk 0:00:11]} 45. bxa4 {[%clk 0:00:04]}  bxa4 {[%clk 0:00:12]} 46. Nc1 {[%clk 0:00:02]}  a3 {[%clk 0:00:12]} 47. Nb3 {[%clk 0:00:03]}  a2 {[%clk 0:00:12]} 48. Na1 {[%clk 0:00:03]}  Nd5 {[%clk 0:00:12]} 49. Nc2 {[%clk 0:00:03]}  Ne3+ {[%clk 0:00:10]} 50. Nxe3 {[%clk 0:00:01]}  a1=Q {[%clk 0:00:10]} 0-1


[Site "https://www.chess.com"]

[Event "Titled Tuesday Blitz February 07 Late 2023"]
[White "Koziorowicz, Michal"]
[Black "Schekachikhin, Maksim"]
[WhiteFideId "21809194"]
[BlackFideId "24177830"]
[WhiteElo "2307"]
[BlackElo "2371"]
[Result "1-0"]
[Round "08"]
[TimeControl "180+2"]
[Date "2023.02.07"]
[WhiteClock "0:00:16"]
[BlackClock "0:00:01"]

1. a3 {[%clk 0:03:00]}  d5 {[%clk 0:02:58]} 2. Nf3 {[%clk 0:02:59]}  Nf6 {[%clk 0:02:57]} 3. e3 {[%clk 0:03:00]}  Bf5 {[%clk 0:02:55]} 4. c4 {[%clk 0:02:59]}  c6 {[%clk 0:02:55]} 5. Nc3 {[%clk 0:02:59]}  e6 {[%clk 0:02:54]} 6. d4 {[%clk 0:02:59]}  Nbd7 {[%clk 0:02:54]} 7. Be2 {[%clk 0:02:58]}  h6 {[%clk 0:02:52]} 8. O-O {[%clk 0:02:57]}  Be7 {[%clk 0:02:49]} 9. b4 {[%clk 0:02:57]}  O-O {[%clk 0:02:47]} 10. Bb2 {[%clk 0:02:54]}  Ne4 {[%clk 0:02:47]} 11. Nxe4 {[%clk 0:02:53]}  Bxe4 {[%clk 0:02:47]} 12. Nd2 {[%clk 0:02:48]}  Bg6 {[%clk 0:02:46]} 13. Qb3 {[%clk 0:02:45]}  a6 {[%clk 0:02:40]} 14. Rfe1 {[%clk 0:02:42]}  Bf6 {[%clk 0:02:38]} 15. f4 {[%clk 0:02:38]}  Be7 {[%clk 0:02:29]} 16. Nf3 {[%clk 0:02:38]}  Nf6 {[%clk 0:02:29]} 17. Ne5 {[%clk 0:02:37]}  Bh7 {[%clk 0:02:28]} 18. Bf3 {[%clk 0:02:34]}  Be4 {[%clk 0:02:27]} 19. Ng4 {[%clk 0:02:29]}  Bxf3 {[%clk 0:02:23]} 20. Nxf6+ {[%clk 0:02:30]}  Bxf6 {[%clk 0:02:24]} 21. gxf3 {[%clk 0:02:30]}  a5 {[%clk 0:02:19]} 22. Kh1 {[%clk 0:02:27]}  axb4 {[%clk 0:02:17]} 23. axb4 {[%clk 0:02:28]}  dxc4 {[%clk 0:02:17]} 24. Qxc4 {[%clk 0:02:29]}  Qb6 {[%clk 0:02:15]} 25. Qc5 {[%clk 0:02:27]}  Qc7 {[%clk 0:02:14]} 26. Rec1 {[%clk 0:02:19]}  Be7 {[%clk 0:02:13]} 27. Qc4 {[%clk 0:02:18]}  Qb6 {[%clk 0:02:12]} 28. Bc3 {[%clk 0:02:15]}  Qb5 {[%clk 0:02:06]} 29. Qxb5 {[%clk 0:02:02]}  cxb5 {[%clk 0:02:06]} 30. Kg2 {[%clk 0:02:00]}  Ra4 {[%clk 0:02:06]} 31. Kf2 {[%clk 0:01:58]}  Rfa8 {[%clk 0:02:04]} 32. Rab1 {[%clk 0:01:50]}  Ra2+ {[%clk 0:02:01]} 33. Kg3 {[%clk 0:01:50]}  Rc8 {[%clk 0:02:00]} 34. Be1 {[%clk 0:01:44]}  Rc4 {[%clk 0:01:58]} 35. Rd1 {[%clk 0:01:37]}  Ra3 {[%clk 0:01:44]} 36. e4 {[%clk 0:01:13]}  g5 {[%clk 0:01:24]} 37. fxg5 {[%clk 0:01:12]}  hxg5 {[%clk 0:01:24]} 38. h3 {[%clk 0:01:04]}  f5 {[%clk 0:01:20]} 39. Ra1 {[%clk 0:01:00]}  Rxa1 {[%clk 0:01:15]} 40. Rxa1 {[%clk 0:01:01]}  Rxd4 {[%clk 0:01:14]} 41. Ra7 {[%clk 0:01:00]}  Bd6+ {[%clk 0:01:06]} 42. Kg2 {[%clk 0:00:55]}  fxe4 {[%clk 0:01:04]} 43. fxe4 {[%clk 0:00:56]}  Rxe4 {[%clk 0:01:04]} 44. Bf2 {[%clk 0:00:52]}  Rxb4 {[%clk 0:01:00]} 45. Rxb7 {[%clk 0:00:49]}  Rb2 {[%clk 0:01:00]} 46. Kf3 {[%clk 0:00:48]}  Bf4 {[%clk 0:00:52]} 47. Bd4 {[%clk 0:00:44]}  Rb3+ {[%clk 0:00:51]} 48. Kg4 {[%clk 0:00:45]}  e5 {[%clk 0:00:51]} 49. Bc5 {[%clk 0:00:42]}  e4 {[%clk 0:00:27]} 50. Kf5 {[%clk 0:00:41]}  Rc3 {[%clk 0:00:25]} 51. Bd4 {[%clk 0:00:35]}  Rc4 {[%clk 0:00:22]} 52. Kxe4 {[%clk 0:00:27]}  b4 {[%clk 0:00:20]} 53. Kd5 {[%clk 0:00:26]}  Rc7 {[%clk 0:00:19]} 54. Rxb4 {[%clk 0:00:23]}  Kf7 {[%clk 0:00:18]} 55. Rb6 {[%clk 0:00:22]}  Rd7+ {[%clk 0:00:17]} 56. Ke4 {[%clk 0:00:22]}  Rc7 {[%clk 0:00:15]} 57. Kf5 {[%clk 0:00:21]}  Rc4 {[%clk 0:00:13]} 58. Rf6+ {[%clk 0:00:20]}  Ke7 {[%clk 0:00:12]} 59. Bb2 {[%clk 0:00:21]}  Rc2 {[%clk 0:00:11]} 60. Ba3+ {[%clk 0:00:20]}  Kd7 {[%clk 0:00:11]} 61. Rf7+ {[%clk 0:00:20]}  Ke8 {[%clk 0:00:11]} 62. Rf8+ {[%clk 0:00:20]}  Kd7 {[%clk 0:00:11]} 63. Rf7+ {[%clk 0:00:18]}  Ke8 {[%clk 0:00:11]} 64. Rf6 {[%clk 0:00:19]}  Rh2 {[%clk 0:00:10]} 65. Kg4 {[%clk 0:00:18]}  Rg2+ {[%clk 0:00:10]} 66. Kf5 {[%clk 0:00:19]}  Rg3 {[%clk 0:00:10]} 67. Ke6 {[%clk 0:00:18]}  Re3+ {[%clk 0:00:09]} 68. Kf5 {[%clk 0:00:18]}  Rxh3 {[%clk 0:00:08]} 69. Bc5 {[%clk 0:00:17]}  Rc3 {[%clk 0:00:07]} 70. Bd4 {[%clk 0:00:17]}  Rd3 {[%clk 0:00:07]} 71. Bf2 {[%clk 0:00:16]}  Kd7 {[%clk 0:00:06]} 72. Be1 {[%clk 0:00:15]}  Rd5+ {[%clk 0:00:06]} 73. Kg4 {[%clk 0:00:16]}  Ke7 {[%clk 0:00:06]} 74. Ra6 {[%clk 0:00:16]}  Kf7 {[%clk 0:00:05]} 75. Bb4 {[%clk 0:00:16]}  Be3 {[%clk 0:00:03]} 76. Bc3 {[%clk 0:00:16]}  Rc5 {[%clk 0:00:03]} 77. Ba1 {[%clk 0:00:15]}  Rc4+ {[%clk 0:00:04]} 78. Kf5 {[%clk 0:00:16]}  Rf4+ {[%clk 0:00:03]} 79. Ke5 {[%clk 0:00:16]}  Bd2 {[%clk 0:00:03]} 80. Ra7+ {[%clk 0:00:16]}  Ke8 {[%clk 0:00:03]} 81. Ke6 {[%clk 0:00:16]}  Re4+ {[%clk 0:00:03]} 82. Be5 {[%clk 0:00:16]}  Rxe5+ {[%clk 0:00:01]} 83. Kxe5 {[%clk 0:00:16]}  Bf4+ {[%clk 0:00:01]} 84. Kf5 {[%clk 0:00:17]}  Kd8 {[%clk 0:00:01]} 85. Ke6 {[%clk 0:00:16]} 1-0


[Site "https://www.chess.com"]